[Event "European Online Club-ch-F 2021"]
[Site "Online"]
[Date "2021.03.27"]
[Round "1.18"]
[White "Rogule, Laura"]
[Black "Ozen, Deniz"]
[Result "1/2-1/2"]
[ECO "D17"]
[WhiteElo "2286"]
[BlackElo "2397"]
[Annotator "NA"]
[PlyCount "121"]
[EventDate "2021.03.27"]
[EventType "team-tourn"]
[EventCountry "NET"]
[SourceTitle "playchess.com"]
[Source "ChessBase"]
[SourceQuality "1"]
[TimeControl "900+5"]

1. d4 {[%emt 0:00:00]} d5 {[%emt 0:00:07]} 2. c4 {[%emt 0:00:08]} c6 {[%emt 0:00:05]} 3. Nc3 {[%emt 0:00:19]} Nf6 {[%emt 0:00:05]} 4. Nf3 {[%emt 0:00:13]} dxc4 {[%emt 0:00:12]} 5. a4 {[%emt 0:00:23]} Bf5 {[%emt 0:00:26]} 6. Ne5 {[%emt 0:00:17]} Nbd7 {[%emt 0:00:59]} 7. Nxc4 {[%emt 0:00:12]} Qc7 {[%emt 0:00:23]} 8. g3 {[%emt 0:00:18]} e5 {[%emt 0:01:03]} 9. dxe5 {[%emt 0:00:06]} Nxe5 {[%emt 0:00:03]} 10. Bf4 {[%emt 0:00:11]} Nfd7 {[%emt 0:00:03]} 11. Bg2 {[%emt 0:01:58]} g5 {[%emt 0:02:17]} 12. Ne3 {[%emt 0:01:40]} gxf4 {[%emt 0:00:06]} 13. Nxf5 {[%emt 0:00:03]} O-O-O {[%emt 0:01:32]} 14. Qc2 {[%emt 0:01:41]} fxg3 {[%emt 0:03:42]} 15. hxg3 {[%emt 0:00:05]} a5 {[%emt 0:00:16]} 16. O-O {[%emt 0:02:30]} Bb4 {[%emt 0:00:47]} 17. Rac1 {[%emt 0:02:17]} Nc5 {[%emt 0:00:23]} 18. e3 {[%emt 0:01:56]} h5 {[%emt 0:00:24]} 19. Ne4 {[%emt 0:00:18]} Nxe4 {[%emt 0:00:35]} 20. Qxe4 {[%emt 0:00:02]} Kb8 {[%emt 0:01:26]} 21. Rfd1 {[%emt 0:00:18]} Rxd1+ {[%emt 0:00:28]} 22. Rxd1 {[%emt 0:00:02]} f6 {[%emt 0:00:06]} 23. Qd4 {[%emt 0:00:21]} Qc8 {[%emt 0:00:41]} 24. Qf4 {[%emt 0:00:58]} Ka7 {[%emt 0:00:14]} 25. Nd6 {[%emt 0:00:20]} Qg4 {[%emt 0:00:15]} 26. Qd4+ {[%emt 0:00:22]} Qxd4 {[%emt 0:00:18]} 27. Rxd4 {[%emt 0:00:03]} Bxd6 {[%emt 0:00:09]} 28. Rxd6 {[%emt 0:00:01]} Nc4 {[%emt 0:00:02]} 29. Rxf6 {[%emt 0:00:04]} Nxb2 {[%emt 0:00:01]} 30. Rf7 {[%emt 0:00:01]} Kb6 {[%emt 0:00:07]} 31. Rf4 {[%emt 0:00:03]} Kc5 {[%emt 0:00:08]} 32. Bf1 {[%emt 0:00:03]} Rd8 {[%emt 0:00:08]} 33. e4 {[%emt 0:00:08]} Nxa4 {[%emt 0:00:04]} 34. Rf5+ {[%emt 0:00:04]} Kb6 {[%emt 0:00:01]} 35. Rxh5 {[%emt 0:00:03]} Nc5 {[%emt 0:00:02]} 36. e5 {[%emt 0:00:04]} a4 {[%emt 0:00:01]} 37. Bc4 {[%emt 0:00:03]} Rd4 {[%emt 0:00:02]} 38. Rh4 {[%emt 0:00:05]} Rd1+ {[%emt 0:00:08]} 39. Kg2 {[%emt 0:00:03]} Ka5 {[%emt 0:00:10]} 40. f4 {[%emt 0:00:11]} b5 {[%emt 0:00:02]} 41. Bf7 {[%emt 0:00:07]} a3 {[%emt 0:00:06]} 42. Rh8 {[%emt 0:00:04]} Rd7 {[%emt 0:00:08]} 43. Ra8+ {[%emt 0:00:10]} Kb4 {[%emt 0:00:09]} 44. e6 {[%emt 0:00:06]} Rc7 {[%emt 0:00:04]} 45. f5 {[%emt 0:00:11]} Na4 {[%emt 0:00:03]} 46. Rd8 {[%emt 0:00:10]} Nc3 {[%emt 0:00:07]} 47. f6 {[%emt 0:00:07]} a2 {[%emt 0:00:02]} 48. Ra8 {[%emt 0:00:02]} Na4 {[%emt 0:00:04]} 49. e7 {[%emt 0:00:02]} a1=Q {[%emt 0:00:04]} 50. e8=Q {[%emt 0:00:02]} Qb2+ {[%emt 0:00:10]} 51. Kh3 {[%emt 0:00:02]} Qxf6 {[%emt 0:00:05]} 52. Qe4+ {[%emt 0:00:09]} Kc5 {[%emt 0:00:04]} 53. Bh5 {[%emt 0:00:08]} Qd4 {[%emt 0:00:07]} 54. Qc2+ {[%emt 0:00:06]} Qc4 {[%emt 0:00:05]} 55. Qf2+ {[%emt 0:00:02]} Qd4 {[%emt 0:00:02]} 56. Qf8+ {[%emt 0:00:02]} Qd6 {[%emt 0:00:03]} 57. Qf2+ {[%emt 0:00:03]} Qd4 {[%emt 0:00:02]} 58. Qf8+ {[%emt 0:00:04]} Qd6 {[%emt 0:00:11]} 59. Qf2+ {[%emt 0:00:06]} Kb4 {[%emt 0:00:05]} 60. Qe1+ {[%emt 0:00:10]} Kc5 {[%emt 0:00:06]} 61. Qf2+ {[%emt 0:00:05]} 1/2-1/2

[Event "European Online Club-ch-F 2021"]
[Site "Online"]
[Date "2021.03.27"]
[Round "1.19"]
[White "Can, Isik"]
[Black "Reizniece-Ozola, Dana"]
[Result "1-0"]
[ECO "B78"]
[WhiteElo "2380"]
[BlackElo "2279"]
[Annotator "NA"]
[PlyCount "95"]
[EventDate "2021.03.27"]
[EventType "team-tourn"]
[EventCountry "NET"]
[SourceTitle "playchess.com"]
[Source "ChessBase"]
[SourceQuality "1"]
[TimeControl "900+5"]

1. e4 {[%emt 0:00:00]} c5 {[%emt 0:00:18]} 2. Nf3 {[%emt 0:00:03]} d6 {[%emt 0:00:09]} 3. d4 {[%emt 0:00:03]} cxd4 {[%emt 0:00:03]} 4. Nxd4 {[%emt 0:00:01]} Nf6 {[%emt 0:00:04]} 5. Nc3 {[%emt 0:00:03]} g6 {[%emt 0:00:13]} 6. Be3 {[%emt 0:00:04]} Bg7 {[%emt 0:00:03]} 7. Bc4 {[%emt 0:00:08]} O-O {[%emt 0:00:43]} 8. f3 {[%emt 0:00:07]} Nc6 {[%emt 0:00:04]} 9. Qd2 {[%emt 0:00:03]} Bd7 {[%emt 0:00:07]} 10. h4 {[%emt 0:00:09]} h5 {[%emt 0:00:13]} 11. O-O-O {[%emt 0:00:05]} Ne5 {[%emt 0:00:28]} 12. Bb3 {[%emt 0:00:03]} Rc8 {[%emt 0:00:03]} 13. Bg5 {[%emt 0:00:06]} Rc5 {[%emt 0:00:34]} 14. Kb1 {[%emt 0:00:03]} Re8 {[%emt 0:01:40]} 15. Bh6 {[%emt 0:00:22]} Nc4 {[%emt 0:00:53]} 16. Bxc4 {[%emt 0:00:33]} Rxc4 {[%emt 0:00:02]} 17. Bxg7 {[%emt 0:02:21]} Kxg7 {[%emt 0:00:03]} 18. Nd5 {[%emt 0:00:13]} e5 {[%emt 0:04:10]} 19. Nxf6 {[%emt 0:01:47]} Qxf6 {[%emt 0:00:10]} 20. Nb3 {[%emt 0:01:18]} Rc6 {[%emt 0:00:35]} 21. Na5 {[%emt 0:02:32]} Ra6 {[%emt 0:00:08]} 22. Nxb7 {[%emt 0:00:20]} Be6 {[%emt 0:01:30]} 23. b3 {[%emt 0:00:22]} Qe7 {[%emt 0:00:50]} 24. Nxd6 {[%emt 0:00:10]} Rb8 {[%emt 0:01:34]} 25. c4 {[%emt 0:02:30]} Rc6 {[%emt 0:01:30]} 26. Qa5 {[%emt 0:01:38]} f6 {[%emt 0:00:12]} 27. c5 {[%emt 0:00:03]} a6 {[%emt 0:00:17]} 28. Rc1 {[%emt 0:00:25]} Qa7 {[%emt 0:00:11]} 29. g3 {[%emt 0:00:28]} Qe7 {[%emt 0:00:15]} 30. Ka1 {[%emt 0:00:14]} f5 {[%emt 0:00:04]} 31. Qc3 {[%emt 0:00:15]} Qf6 {[%emt 0:00:06]} 32. f4 {[%emt 0:00:17]} exf4 {[%emt 0:00:10]} 33. e5 {[%emt 0:00:05]} Qd8 {[%emt 0:00:06]} 34. gxf4 {[%emt 0:00:03]} a5 {[%emt 0:00:03]} 35. Qg3 {[%emt 0:00:13]} a4 {[%emt 0:00:06]} 36. Rhg1 {[%emt 0:00:03]} Bf7 {[%emt 0:00:05]} 37. b4 {[%emt 0:00:17]} Kf8 {[%emt 0:00:07]} 38. Qc3 {[%emt 0:00:09]} Qd7 {[%emt 0:00:04]} 39. Nxf7 {[%emt 0:00:21]} Qxf7 {[%emt 0:00:06]} 40. a3 {[%emt 0:00:01]} Kg8 {[%emt 0:00:10]} 41. Rcd1 {[%emt 0:00:04]} Rbc8 {[%emt 0:00:07]} 42. Qf3 {[%emt 0:00:06]} Qc4 {[%emt 0:00:04]} 43. Qd5+ {[%emt 0:00:02]} Qxd5 {[%emt 0:00:02]} 44. Rxd5 {[%emt 0:00:02]} Kf7 {[%emt 0:00:02]} 45. Rgd1 {[%emt 0:00:03]} g5 {[%emt 0:00:06]} 46. Rd7+ {[%emt 0:00:03]} Ke8 {[%emt 0:00:05]} 47. hxg5 {[%emt 0:00:03]} h4 {[%emt 0:00:07]} 48. Rh7 {[%emt 0:00:02]} 1-0

[Event "European Online Club-ch-F 2021"]
[Site "Online"]
[Date "2021.03.27"]
[Round "1.20"]
[White "Grandell, Anders"]
[Black "Ozen, Bahadir"]
[Result "1/2-1/2"]
[ECO "D58"]
[WhiteElo "2296"]
[BlackElo "2369"]
[Annotator "NA"]
[PlyCount "83"]
[EventDate "2021.03.27"]
[EventType "team-tourn"]
[EventCountry "NET"]
[SourceTitle "playchess.com"]
[Source "ChessBase"]
[SourceQuality "1"]
[TimeControl "900+5"]

1. d4 {[%emt 0:00:00]} d5 {[%emt 0:00:03]} 2. c4 {[%emt 0:00:03]} e6 {[%emt 0:00:05]} 3. Nf3 {[%emt 0:00:03]} Nf6 {[%emt 0:00:05]} 4. Nc3 {[%emt 0:00:02]} Be7 {[%emt 0:00:04]} 5. Bg5 {[%emt 0:00:05]} h6 {[%emt 0:00:04]} 6. Bh4 {[%emt 0:00:40]} O-O {[%emt 0:00:08]} 7. e3 {[%emt 0:00:09]} b6 {[%emt 0:00:10]} 8. Be2 {[%emt 0:00:23]} Bb7 {[%emt 0:00:42]} 9. O-O {[%emt 0:00:06]} Nbd7 {[%emt 0:00:03]} 10. Rc1 {[%emt 0:00:50]} c5 {[%emt 0:00:28]} 11. Qa4 {[%emt 0:02:23]} dxc4 {[%emt 0:01:47]} 12. Qxc4 {[%emt 0:00:14]} a6 {[%emt 0:02:18]} 13. a4 {[%emt 0:00:06]} Ne4 {[%emt 0:01:40]} 14. Bxe7 {[%emt 0:00:36]} Qxe7 {[%emt 0:00:01]} 15. Nxe4 {[%emt 0:01:58]} Bxe4 {[%emt 0:00:03]} 16. dxc5 {[%emt 0:00:06]} Nxc5 {[%emt 0:00:58]} 17. Qb4 {[%emt 0:00:13]} Rab8 {[%emt 0:02:34]} 18. a5 {[%emt 0:01:17]} Bxf3 {[%emt 0:00:20]} 19. Bxf3 {[%emt 0:00:04]} Qf6 {[%emt 0:00:01]} 20. Rfd1 {[%emt 0:00:25]} Qf5 {[%emt 0:00:51]} 21. e4 {[%emt 0:00:42]} Qg5 {[%emt 0:00:12]} 22. Rc2 {[%emt 0:02:30]} e5 {[%emt 0:00:26]} 23. axb6 {[%emt 0:01:04]} Ne6 {[%emt 0:00:02]} 24. Qa5 {[%emt 0:00:41]} Nd4 {[%emt 0:00:10]} 25. Rc3 {[%emt 0:00:03]} Qf6 {[%emt 0:00:12]} 26. Qxa6 {[%emt 0:00:31]} Rxb6 {[%emt 0:00:03]} 27. Qa2 {[%emt 0:00:27]} Rfb8 {[%emt 0:00:03]} 28. Rb1 {[%emt 0:00:23]} Qf4 {[%emt 0:00:23]} 29. Re3 {[%emt 0:00:43]} g6 {[%emt 0:00:37]} 30. h3 {[%emt 0:00:11]} h5 {[%emt 0:00:01]} 31. Bd1 {[%emt 0:00:05]} Kg7 {[%emt 0:00:22]} 32. g3 {[%emt 0:00:08]} Qf6 {[%emt 0:00:02]} 33. h4 {[%emt 0:00:02]} Qc6 {[%emt 0:00:22]} 34. Qa3 {[%emt 0:00:19]} Rb4 {[%emt 0:00:46]} 35. Qa2 {[%emt 0:00:13]} Qb6 {[%emt 0:00:18]} 36. Qd5 {[%emt 0:00:03]} Rb5 {[%emt 0:00:02]} 37. Qd7 {[%emt 0:00:03]} Rxb2 {[%emt 0:00:28]} 38. Rxb2 {[%emt 0:00:08]} Qxb2 {[%emt 0:00:02]} 39. Qe7 {[%emt 0:00:01]} Qb5 {[%emt 0:00:35]} 40. Ba4 {[%emt 0:00:10]} Rb7 {[%emt 0:00:12]} 41. Bxb5 {[%emt 0:00:05]} Rxe7 {[%emt 0:00:02]} 42. Bf1 {[%emt 0:00:02]} 1/2-1/2

[Event "European Online Club-ch-F 2021"]
[Site "Online"]
[Date "2021.03.27"]
[Round "2.1"]
[White "Pulkkinen, Kari"]
[Black "Hellers, Ferdinand"]
[Result "0-1"]
[ECO "B04"]
[WhiteElo "2256"]
[BlackElo "2592"]
[Annotator "ChessBase"]
[PlyCount "110"]
[EventDate "2021.03.27"]
[EventType "team-tourn"]
[EventCountry "NET"]
[SourceTitle "playchess.com"]
[Source "ChessBase"]
[SourceQuality "1"]
[TimeControl "900+5"]

1. e4 {[%emt 0:00:00]} Nf6 {[%emt 0:00:05]} 2. e5 {[%emt 0:00:03]} Nd5 {[%emt 0:00:03]} 3. d4 {[%emt 0:00:02]} d6 {[%emt 0:00:01]} 4. Nf3 {[%emt 0:00:03]} g6 {[%emt 0:00:03]} 5. Bc4 {[%emt 0:00:07]} Nb6 {[%emt 0:00:02]} 6. Bb3 {[%emt 0:00:02]} Bg7 {[%emt 0:00:01]} 7. Ng5 {[%emt 0:00:02]} e6 {[%emt 0:00:03]} 8. f4 {[%emt 0:00:05]} dxe5 {[%emt 0:00:13]} 9. fxe5 {[%emt 0:00:02]} O-O {[%emt 0:00:07]} 10. O-O {[%emt 0:00:05]} c5 {[%emt 0:00:08]} 11. c3 {[%emt 0:00:02]} cxd4 {[%emt 0:00:12]} 12. cxd4 {[%emt 0:00:03]} Nc6 {[%emt 0:00:02]} 13. Nf3 {[%emt 0:00:16]} f6 {[%emt 0:00:05]} 14. exf6 {[%emt 0:00:06]} Qxf6 {[%emt 0:00:02]} 15. Be3 {[%emt 0:00:15]} Nd5 {[%emt 0:00:02]} 16. Bf2 {[%emt 0:00:26]} Nf4 {[%emt 0:01:24]} 17. Nc3 {[%emt 0:00:14]} Nh3+ {[%emt 0:03:49]} 18. gxh3 {[%emt 0:00:19]} Qxf3 {[%emt 0:00:04]} 19. Qxf3 {[%emt 0:00:14]} Rxf3 {[%emt 0:00:02]} 20. Kg2 {[%emt 0:00:12]} Rf8 {[%emt 0:03:25]} 21. Rad1 {[%emt 0:00:22]} Na5 {[%emt 0:00:22]} 22. Bc2 {[%emt 0:00:19]} Bd7 {[%emt 0:01:11]} 23. Be4 {[%emt 0:00:09]} Bc6 {[%emt 0:00:39]} 24. Rfe1 {[%emt 0:00:10]} Rad8 {[%emt 0:01:10]} 25. b4 {[%emt 0:01:02]} Bxe4+ {[%emt 0:00:17]} 26. Rxe4 {[%emt 0:00:10]} Nc6 {[%emt 0:00:12]} 27. Rxe6 {[%emt 0:00:47]} Bxd4 {[%emt 0:00:19]} 28. Bxd4 {[%emt 0:00:11]} Rxd4 {[%emt 0:00:07]} 29. Rxd4 {[%emt 0:00:07]} Nxd4 {[%emt 0:00:02]} 30. Re7 {[%emt 0:00:06]} Rf7 {[%emt 0:00:05]} 31. Re8+ {[%emt 0:00:08]} Kg7 {[%emt 0:00:08]} 32. Ne4 {[%emt 0:00:06]} Nf5 {[%emt 0:00:05]} 33. Nc5 {[%emt 0:00:12]} b6 {[%emt 0:00:14]} 34. Ne6+ {[%emt 0:00:09]} Kf6 {[%emt 0:00:03]} 35. Nf4 {[%emt 0:00:09]} Rd7 {[%emt 0:00:07]} 36. Kf3 {[%emt 0:01:25]} Rd2 {[%emt 0:00:13]} 37. a4 {[%emt 0:00:24]} Ra2 {[%emt 0:00:20]} 38. Rf8+ {[%emt 0:00:37]} Kg7 {[%emt 0:00:18]} 39. Ne6+ {[%emt 0:00:12]} Kh6 {[%emt 0:00:02]} 40. Rf7 {[%emt 0:00:08]} Ra3+ {[%emt 0:00:52]} 41. Kf4 {[%emt 0:00:21]} Rxa4 {[%emt 0:00:23]} 42. Nf8 {[%emt 0:00:09]} Rxb4+ {[%emt 0:00:02]} 43. Ke5 {[%emt 0:00:04]} Ng7 {[%emt 0:00:09]} 44. Rxa7 {[%emt 0:00:08]} Rb3 {[%emt 0:00:11]} 45. Nd7 {[%emt 0:00:11]} Re3+ {[%emt 0:00:17]} 46. Kf4 {[%emt 0:00:09]} Re7 {[%emt 0:00:13]} 47. Kg4 {[%emt 0:00:37]} Nh5 {[%emt 0:00:14]} 48. Ra6 {[%emt 0:00:57]} Rxd7 {[%emt 0:00:06]} 49. Rxb6 {[%emt 0:00:02]} Rd2 {[%emt 0:00:08]} 50. Rb5 {[%emt 0:00:10]} Rxh2 {[%emt 0:00:03]} 51. Rc5 {[%emt 0:00:03]} Rg2+ {[%emt 0:00:03]} 52. Kf3 {[%emt 0:00:05]} Rg3+ {[%emt 0:00:02]} 53. Kf2 {[%emt 0:00:03]} Rxh3 {[%emt 0:00:01]} 54. Kg2 {[%emt 0:00:01]} Ra3 {[%emt 0:00:02]} 55. Kf2 {[%emt 0:00:02]} Nf4 {[%emt 0:00:01]} 0-1

[Event "European Online Club-ch-F 2021"]
[Site "Online"]
[Date "2021.03.27"]
[Round "2.3"]
[White "Lammi, Jyri"]
[Black "Cramling, Dan"]
[Result "1-0"]
[ECO "B02"]
[WhiteElo "2083"]
[BlackElo "2292"]
[Annotator "NA"]
[PlyCount "47"]
[EventDate "2021.03.27"]
[EventType "team-tourn"]
[EventCountry "NET"]
[SourceTitle "playchess.com"]
[Source "ChessBase"]
[SourceQuality "1"]
[TimeControl "900+5"]

1. e4 {[%emt 0:00:00]} Nf6 {[%emt 0:00:05]} 2. d3 {[%emt 0:00:19]} d5 {[%emt 0:00:12]} 3. e5 {[%emt 0:00:11]} Nfd7 {[%emt 0:00:04]} 4. f4 {[%emt 0:00:46]} c5 {[%emt 0:00:09]} 5. Nf3 {[%emt 0:00:08]} Nc6 {[%emt 0:00:07]} 6. b3 {[%emt 0:00:38]} e6 {[%emt 0:02:40]} 7. Be2 {[%emt 0:00:12]} Be7 {[%emt 0:00:07]} 8. O-O {[%emt 0:00:04]} O-O {[%emt 0:00:04]} 9. Nbd2 {[%emt 0:00:43]} f6 {[%emt 0:00:19]} 10. Bb2 {[%emt 0:00:15]} fxe5 {[%emt 0:00:16]} 11. Nxe5 {[%emt 0:00:13]} Ndxe5 {[%emt 0:00:20]} 12. fxe5 {[%emt 0:00:12]} Bg5 {[%emt 0:04:03]} 13. Nf3 {[%emt 0:04:48]} Be3+ {[%emt 0:00:21]} 14. Kh1 {[%emt 0:00:03]} Qc7 {[%emt 0:01:07]} 15. Qe1 {[%emt 0:03:30]} Bd7 {[%emt 0:01:20]} 16. Qh4 {[%emt 0:00:54]} Rf4 {[%emt 0:03:35]} 17. Qg3 {[%emt 0:00:05]} Raf8 {[%emt 0:00:07]} 18. Ng5 {[%emt 0:00:27]} Bf2 {[%emt 0:00:26]} 19. Qh3 {[%emt 0:00:31]} Rh4 {[%emt 0:01:01]} 20. Nxe6 {[%emt 0:00:39]} Qc8 {[%emt 0:00:07]} 21. Rxf2 {[%emt 0:00:11]} Rxf2 {[%emt 0:00:08]} 22. Qxh4 {[%emt 0:00:13]} Rxe2 {[%emt 0:00:01]} 23. Nxg7 {[%emt 0:00:36]} Rxc2 {[%emt 0:00:07]} 24. Nh5 {[%emt 0:01:04]} 1-0

[Event "European Online Club-ch-F 2021"]
[Site "Online"]
[Date "2021.03.27"]
[Round "2.4"]
[White "Grandell, Anders"]
[Black "Puittinen, Mika"]
[Result "0-1"]
[ECO "D17"]
[WhiteElo "2296"]
[BlackElo "2007"]
[Annotator "NA"]
[PlyCount "94"]
[EventDate "2021.03.27"]
[EventType "team-tourn"]
[EventCountry "NET"]
[SourceTitle "playchess.com"]
[Source "ChessBase"]
[SourceQuality "1"]
[TimeControl "900+5"]

1. d4 {[%emt 0:00:00]} d5 {[%emt 0:00:04]} 2. c4 {[%emt 0:00:03]} c6 {[%emt 0:00:02]} 3. Nc3 {[%emt 0:00:15]} Nf6 {[%emt 0:00:04]} 4. Nf3 {[%emt 0:00:05]} dxc4 {[%emt 0:00:02]} 5. a4 {[%emt 0:00:03]} Bf5 {[%emt 0:00:04]} 6. Ne5 {[%emt 0:00:02]} Nbd7 {[%emt 0:00:11]} 7. Nxc4 {[%emt 0:00:11]} Qc7 {[%emt 0:00:02]} 8. g3 {[%emt 0:00:05]} e5 {[%emt 0:00:03]} 9. dxe5 {[%emt 0:00:07]} Nxe5 {[%emt 0:00:02]} 10. Bf4 {[%emt 0:00:07]} Nfd7 {[%emt 0:00:02]} 11. Bg2 {[%emt 0:00:16]} g5 {[%emt 0:00:02]} 12. Ne3 {[%emt 0:00:07]} gxf4 {[%emt 0:00:28]} 13. Nxf5 {[%emt 0:00:02]} fxg3 {[%emt 0:00:37]} 14. hxg3 {[%emt 0:00:09]} O-O-O {[%emt 0:00:06]} 15. Qc2 {[%emt 0:00:23]} Kb8 {[%emt 0:00:35]} 16. Rb1 {[%emt 0:02:49]} Bb4 {[%emt 0:00:15]} 17. O-O {[%emt 0:00:03]} Nc5 {[%emt 0:03:31]} 18. Rfd1 {[%emt 0:02:38]} Rxd1+ {[%emt 0:00:16]} 19. Rxd1 {[%emt 0:00:04]} Rd8 {[%emt 0:00:03]} 20. Na2 {[%emt 0:00:43]} Na6 {[%emt 0:02:23]} 21. Be4 {[%emt 0:01:29]} Bf8 {[%emt 0:00:35]} 22. Kg2 {[%emt 0:00:28]} Nc5 {[%emt 0:00:30]} 23. Rh1 {[%emt 0:00:11]} f6 {[%emt 0:00:35]} 24. Nc1 {[%emt 0:01:20]} Qa5 {[%emt 0:01:46]} 25. Nb3 {[%emt 0:00:23]} Qxa4 {[%emt 0:00:51]} 26. Nxc5 {[%emt 0:00:06]} Qxc2 {[%emt 0:00:03]} 27. Na6+ {[%emt 0:00:02]} bxa6 {[%emt 0:00:03]} 28. Bxc2 {[%emt 0:00:01]} Rd2 {[%emt 0:00:17]} 29. Ba4 {[%emt 0:00:14]} Rxe2 {[%emt 0:00:29]} 30. Rxh7 {[%emt 0:00:58]} Bc5 {[%emt 0:00:05]} 31. Ne7 {[%emt 0:00:29]} Rxf2+ {[%emt 0:00:20]} 32. Kh3 {[%emt 0:00:05]} Rxb2 {[%emt 0:00:33]} 33. Nxc6+ {[%emt 0:00:14]} Nxc6 {[%emt 0:00:11]} 34. Bxc6 {[%emt 0:00:00]} a5 {[%emt 0:00:30]} 35. Ba4 {[%emt 0:01:05]} Rb4 {[%emt 0:00:16]} 36. Rh4 {[%emt 0:00:15]} Kc7 {[%emt 0:00:16]} 37. Kg2 {[%emt 0:00:05]} Kd6 {[%emt 0:00:16]} 38. Kf3 {[%emt 0:00:02]} Bd4 {[%emt 0:00:25]} 39. Bc2 {[%emt 0:00:08]} a4 {[%emt 0:00:08]} 40. Bb1 {[%emt 0:00:45]} Kc5 {[%emt 0:00:29]} 41. Ba2 {[%emt 0:00:08]} Rb2 {[%emt 0:00:10]} 42. Bf7 {[%emt 0:00:07]} a3 {[%emt 0:00:11]} 43. Rh5+ {[%emt 0:00:24]} Kb4 {[%emt 0:00:04]} 44. Rd5 {[%emt 0:00:22]} Bb6 {[%emt 0:00:28]} 45. Rd6 {[%emt 0:00:56]} a2 {[%emt 0:00:04]} 46. Bxa2 {[%emt 0:00:14]} Rxa2 {[%emt 0:00:02]} 47. Rxf6 {[%emt 0:00:00]} Rf2+ {[%emt 0:00:03]} 0-1

[Event "European Online Club-ch-F 2021"]
[Site "Online"]
[Date "2021.03.27"]
[Round "2.5"]
[White "Sochacki, Christophe"]
[Black "Gokerkan, Cem Kaan"]
[Result "0-1"]
[ECO "B53"]
[WhiteElo "2477"]
[BlackElo "2470"]
[Annotator "ChessBase"]
[PlyCount "96"]
[EventDate "2021.03.27"]
[EventType "team-tourn"]
[EventCountry "NET"]
[SourceTitle "playchess.com"]
[Source "ChessBase"]
[SourceQuality "1"]
[TimeControl "900+5"]

1. e4 {[%emt 0:00:00]} c5 {[%emt 0:00:03]} 2. Nf3 {[%emt 0:00:05]} d6 {[%emt 0:00:01]} 3. d4 {[%emt 0:00:13]} cxd4 {[%emt 0:00:05]} 4. Qxd4 {[%emt 0:00:11]} Nf6 {[%emt 0:00:25]} 5. Nc3 {[%emt 0:00:32]} Nc6 {[%emt 0:00:03]} 6. Bb5 {[%emt 0:00:18]} Bd7 {[%emt 0:00:02]} 7. Bxc6 {[%emt 0:00:14]} Bxc6 {[%emt 0:00:02]} 8. Bg5 {[%emt 0:00:09]} e6 {[%emt 0:00:02]} 9. O-O-O {[%emt 0:00:36]} Be7 {[%emt 0:00:03]} 10. Qd3 {[%emt 0:00:06]} Qa5 {[%emt 0:00:10]} 11. h4 {[%emt 0:00:19]} h6 {[%emt 0:00:21]} 12. Bxf6 {[%emt 0:01:35]} Bxf6 {[%emt 0:00:58]} 13. Nd4 {[%emt 0:00:02]} Rc8 {[%emt 0:00:36]} 14. Kb1 {[%emt 0:00:16]} h5 {[%emt 0:03:39]} 15. f3 {[%emt 0:00:32]} O-O {[%emt 0:00:47]} 16. Nb3 {[%emt 0:03:18]} Qb6 {[%emt 0:02:20]} 17. Qxd6 {[%emt 0:00:03]} Bxc3 {[%emt 0:00:34]} 18. bxc3 {[%emt 0:00:02]} a5 {[%emt 0:00:24]} 19. Qd4 {[%emt 0:04:04]} Qb5 {[%emt 0:01:42]} 20. c4 {[%emt 0:00:02]} Qa6 {[%emt 0:00:31]} 21. Nc5 {[%emt 0:02:05]} Qb6+ {[%emt 0:00:02]} 22. Nb3 {[%emt 0:00:01]} Qb4 {[%emt 0:01:02]} 23. c5 {[%emt 0:00:06]} Qb5 {[%emt 0:00:23]} 24. c4 {[%emt 0:00:20]} Qb4 {[%emt 0:00:20]} 25. Ka1 {[%emt 0:01:10]} a4 {[%emt 0:00:13]} 26. Nc1 {[%emt 0:00:02]} Rfd8 {[%emt 0:00:15]} 27. Qxd8+ {[%emt 0:00:39]} Rxd8 {[%emt 0:00:01]} 28. Rxd8+ {[%emt 0:00:01]} Kh7 {[%emt 0:00:01]} 29. Nd3 {[%emt 0:00:01]} Qd2 {[%emt 0:00:24]} 30. Rc1 {[%emt 0:00:18]} a3 {[%emt 0:00:03]} 31. Kb1 {[%emt 0:00:04]} Ba4 {[%emt 0:00:20]} 32. g4 {[%emt 0:00:08]} hxg4 {[%emt 0:00:13]} 33. fxg4 {[%emt 0:00:01]} Bc6 {[%emt 0:00:16]} 34. Rc2 {[%emt 0:00:02]} Qd1+ {[%emt 0:00:01]} 35. Rc1 {[%emt 0:00:03]} Qxg4 {[%emt 0:00:16]} 36. Ra8 {[%emt 0:00:15]} Bxe4 {[%emt 0:00:15]} 37. Rxa3 {[%emt 0:00:02]} Qe2 {[%emt 0:00:24]} 38. Rcc3 {[%emt 0:00:02]} f5 {[%emt 0:00:04]} 39. Kc1 {[%emt 0:00:02]} Bxd3 {[%emt 0:00:08]} 40. Rxd3 {[%emt 0:00:01]} f4 {[%emt 0:00:01]} 41. Rab3 {[%emt 0:00:15]} e5 {[%emt 0:00:03]} 42. Rd2 {[%emt 0:00:02]} Qxc4+ {[%emt 0:00:01]} 43. Rc2 {[%emt 0:00:03]} Qd5 {[%emt 0:00:11]} 44. Rb6 {[%emt 0:00:13]} e4 {[%emt 0:00:07]} 45. Rd6 {[%emt 0:00:02]} Qe5 {[%emt 0:00:05]} 46. Rd7 {[%emt 0:00:06]} e3 {[%emt 0:00:05]} 47. Rb2 {[%emt 0:00:06]} e2 {[%emt 0:00:05]} 48. Rxe2 {[%emt 0:00:07]} Qxe2 {[%emt 0:00:01]} 0-1

[Event "European Online Club-ch-F 2021"]
[Site "Online"]
[Date "2021.03.27"]
[Round "2.6"]
[White "Ozen, Deniz"]
[Black "Sochacki, Wojtek"]
[Result "0-1"]
[ECO "D02"]
[WhiteElo "2397"]
[BlackElo "2320"]
[Annotator "NA"]
[PlyCount "70"]
[EventDate "2021.03.27"]
[EventType "team-tourn"]
[EventCountry "NET"]
[SourceTitle "playchess.com"]
[Source "ChessBase"]
[SourceQuality "1"]
[TimeControl "900+5"]

1. d4 {[%emt 0:00:00]} Nf6 {[%emt 0:00:24]} 2. Bf4 {[%emt 0:00:08]} d5 {[%emt 0:00:23]} 3. Nf3 {[%emt 0:00:03]} c5 {[%emt 0:00:06]} 4. e3 {[%emt 0:00:03]} Nc6 {[%emt 0:00:01]} 5. Nbd2 {[%emt 0:00:04]} Bf5 {[%emt 0:00:05]} 6. dxc5 {[%emt 0:01:26]} e6 {[%emt 0:00:19]} 7. Nd4 {[%emt 0:00:16]} Bxc5 {[%emt 0:00:36]} 8. Nxf5 {[%emt 0:00:03]} exf5 {[%emt 0:00:00]} 9. c3 {[%emt 0:00:38]} O-O {[%emt 0:00:03]} 10. Bd3 {[%emt 0:02:12]} Ne4 {[%emt 0:00:19]} 11. Nf3 {[%emt 0:01:27]} Re8 {[%emt 0:00:10]} 12. O-O {[%emt 0:00:06]} Bd6 {[%emt 0:04:14]} 13. Bxd6 {[%emt 0:03:04]} Qxd6 {[%emt 0:00:09]} 14. c4 {[%emt 0:02:30]} Rad8 {[%emt 0:00:35]} 15. cxd5 {[%emt 0:00:35]} Qxd5 {[%emt 0:00:03]} 16. Be2 {[%emt 0:00:01]} Qe6 {[%emt 0:03:05]} 17. Qa4 {[%emt 0:00:19]} Qf6 {[%emt 0:00:42]} 18. Rab1 {[%emt 0:01:26]} Re6 {[%emt 0:01:54]} 19. Qb3 {[%emt 0:00:51]} g5 {[%emt 0:00:45]} 20. h3 {[%emt 0:00:54]} h5 {[%emt 0:00:18]} 21. Rfd1 {[%emt 0:00:12]} g4 {[%emt 0:00:26]} 22. Nd4 {[%emt 0:00:10]} Nxd4 {[%emt 0:00:27]} 23. exd4 {[%emt 0:00:01]} Rxd4 {[%emt 0:00:07]} 24. Qxb7 {[%emt 0:00:09]} gxh3 {[%emt 0:01:04]} 25. Qb8+ {[%emt 0:00:10]} Kh7 {[%emt 0:00:08]} 26. Qh2 {[%emt 0:00:03]} Qh4 {[%emt 0:00:14]} 27. g3 {[%emt 0:00:05]} Rxd1+ {[%emt 0:00:07]} 28. Rxd1 {[%emt 0:00:06]} Rg6 {[%emt 0:00:04]} 29. Kh1 {[%emt 0:00:09]} Qg5 {[%emt 0:00:23]} 30. Rf1 {[%emt 0:00:06]} Qd2 {[%emt 0:00:05]} 31. Bxh5 {[%emt 0:00:06]} Rh6 {[%emt 0:00:06]} 32. Bf3 {[%emt 0:00:03]} Qd3 {[%emt 0:00:05]} 33. Re1 {[%emt 0:00:13]} Qxf3+ {[%emt 0:00:02]} 34. Kg1 {[%emt 0:00:01]} f4 {[%emt 0:00:06]} 35. Rxe4 {[%emt 0:00:10]} Qd1+ {[%emt 0:00:04]} 0-1